bitfinex-derivatives/quotes_ETHF0:USTF0_20210407
["timestamp","ask_amount","ask_price","bid_price","bid_amount"]
[1617822109097,30.0,1959.3,1957.1,2.7251]
[1617822109594,30.0,1959.3,1957.2,6.35]
[1617822109994,32.0,1959.3,1957.1,2.7251]
[1617822110194,30.0,1959.3,1957.1,2.7251]
[1617822110395,30.0,1959.2,1957.1,2.7251]
[1617822110602,30.0,1959.2,1957.0,80.0004]
[1617822110928,2.90695,1957.2,1956.9,2.90695]
[1617822112896,2.90695,1957.2,1957.1,4.84855]
[1617822113898,2.90695,1957.2,1957.1,1.9416]
[1617822115802,2.90695,1957.2,1957.0,2.90695]
[1617822118005,2.90695,1957.2,1957.1,6.25]
[1617822118339,2.90695,1957.2,1957.1,9.1078]
[1617822118506,79.8464,1958.8,1957.1,9.1078]
[1617822119007,79.8464,1958.8,1957.1,2.8578]
[1617822119308,79.8464,1958.8,1957.2,6.33]
[1617822120706,79.8464,1958.8,1957.7,2.90695]
[1617822120906,1.0291,1960.1,1957.7,5.97745]
[1617822121206,1.0291,1960.1,1957.8,6.16]
[1617822121606,1.0291,1960.1,1957.7,5.97745]
[1617822121807,31.0291,1960.1,1957.7,5.97745]
[1617822122008,2.0,1960.0,1957.7,5.97745]
[1617822122317,30.0,1959.9,1957.7,5.97745]
[1617822122508,2.0,1959.8,1957.7,5.97745]
[1617822122711,2.90695,1957.8,1957.7,5.97745]
[1617822124707,82.1053,1958.9,1957.7,5.97745]
[1617822124907,113.1379,1960.0,1957.7,5.97745]
[1617822124908,13.4387,1960.0,1957.7,5.97745]
[1617822125213,81.4518,1960.3,1957.7,92.34315]
[1617822125819,30.0,1960.2,1957.7,5.97745]
[1617822126008,67.2222,1959.3,1957.7,5.97745]
[1617822126208,30.0,1959.2,1957.7,5.97745]
[1617822126708,2.90695,1957.8,1957.7,3.0705]
[1617822126910,2.90695,1957.8,1956.6,2.9927]
[1617822127110,2.90695,1957.8,1956.4,105.2873]
[1617822127111,2.90695,1957.8,1956.5,2.0]
[1617822127610,2.90695,1957.8,1956.7,6.37]
[1617822127817,2.90695,1957.8,1956.7,2.6435]
[1617822128112,79.79565,1957.8,1956.7,2.6435]
[1617822128311,32.4058,1957.7,1956.7,2.6435]
[1617822128709,2.90695,1956.8,1956.7,5.55045]
[1617822128915,2.90695,1956.8,1956.7,2.90695]
[1617822129810,4.78035,1956.8,1955.4,83.6087]
[1617822130010,4.78035,1956.8,1955.2,30.0]
[1617822130413,4.78035,1956.8,1955.1,2.0]
[1617822130612,4.78035,1956.8,1955.3,6.27]
[1617822130812,31.8734,1956.8,1956.0,2.90695]
[1617822131714,31.8734,1956.8,1954.4,70.6717]
[1617822131715,2.0,1956.7,1954.4,2.0]
[1617822131914,82.1469,1955.9,1954.4,2.0]
[1617822132215,2.1389,1955.8,1953.5,13.1707]
[1617822132413,30.0,1955.7,1953.7,2.0]
[1617822132814,30.0,1955.7,1954.9,2.90695]
[1617822134822,2.90695,1955.0,1954.9,2.90695]
[1617822135420,2.88695,1955.0,1954.9,2.90695]
[1617822140522,32.88695,1955.0,1953.7,2.5495]
[1617822140822,77.7794,1954.0,1953.4,2.90695]
[1617822141421,77.7794,1954.0,1951.9,2.0]
[1617822141725,74.8725,1952.8,1951.8,1.0311]
[1617822141923,77.5314,1952.8,1951.8,1.0311]
[1617822142122,77.5314,1952.8,1952.0,6.16]
[1617822142323,77.5314,1952.8,1951.9,6.28]
[1617822142525,77.5314,1952.8,1952.2,6.4]
[1617822142923,77.5314,1952.8,1951.4,2.0]
[1617822142924,77.5314,1952.8,1952.7,2.90695]
[1617822143624,2.6589,1952.8,1952.7,2.90695]
[1617822144028,73.4523,1953.4,1952.7,9.26695]
[1617822144427,73.4523,1953.4,1952.7,2.90695]
[1617822144832,73.4523,1953.4,1953.3,2.90695]
[1617822145234,73.4523,1953.4,1953.3,9.17695]
[1617822146736,72.9593,1953.4,1953.3,2.90695]
[1617822146934,75.86625,1953.4,1953.3,2.90695]
[1617822147133,72.9593,1953.4,1953.3,2.90695]
[1617822147434,72.9593,1953.4,1953.3,9.15695]
[1617822147635,65.6402,1953.4,1953.3,9.15695]
[1617822147834,65.6402,1953.4,1953.3,2.90695]
[1617822148036,68.5764,1953.4,1953.3,2.90695]
[1617822148835,2.9362,1953.4,1953.3,2.90695]
[1617822149038,2.90695,1953.9,1953.3,5.04575]
[1617822149236,2.90695,1953.9,1953.3,11.19575]
[1617822149671,2.90695,1953.9,1951.9,2.3677]
[1617822149672,80.7817,1953.5,1951.9,2.3677]
[1617822149861,83.1005,1953.5,1951.9,2.3677]
[1617822150239,83.1005,1953.5,1952.0,6.14]
[1617822150981,83.1005,1953.5,1952.7,2.90695]
[1617822151153,2.3188,1953.5,1952.7,2.90695]
[1617822151338,67.2105,1954.7,1952.8,3.98]
[1617822151944,1.0177,1956.5,1952.9,30.0]
[1617822152240,63.7474,1956.1,1953.2,88.3601]
[1617822152441,2.0,1956.0,1953.2,118.3601]
[1617822152640,2.0,1956.0,1953.3,6.31]
[1617822152842,63.7474,1956.1,1953.4,30.0]
[1617822153043,63.7474,1956.1,1955.0,2.3663]
[1617822153742,2.0,1956.0,1955.0,2.3663]
[1617822154141,32.0,1956.0,1953.3,13.3593]
[1617822154341,32.2281,1956.0,1953.3,13.3593]
[1617822154741,2.0,1955.9,1953.3,13.3593]
[1617822154957,32.0,1955.9,1954.4,2.90695]
[1617822155350,33.0312,1955.9,1953.3,13.3593]
[1617822156244,33.0312,1955.9,1953.4,6.24]
[1617822156443,33.0312,1955.9,1953.3,13.3593]
[1617822156652,31.0312,1955.9,1953.3,13.3593]
[1617822156846,31.0312,1955.9,1953.4,6.2]
[1617822157147,30.0,1955.9,1953.8,5.58375]
[1617822157544,30.0,1955.8,1953.8,5.58375]
[1617822157743,2.0,1955.7,1953.8,5.58375]
[1617822157960,30.0,1955.6,1953.8,5.58375]
[1617822158168,2.0,1955.7,1953.8,5.58375]
[1617822158546,30.0,1955.6,1953.9,6.17]
[1617822158745,30.0,1955.6,1953.3,13.3593]
[1617822158746,32.0,1955.6,1953.3,1.9831]
[1617822159014,32.0,1955.6,1953.2,2.90695]
[1617822159015,2.90695,1953.4,1953.2,2.90695]
[1617822159179,5.30335,1953.4,1953.2,2.90695]
[1617822159567,2.3964,1953.4,1953.2,2.90695]
[1617822159803,1.7835,1953.4,1953.3,6.27]
[1617822160359,69.9705,1954.9,1953.3,6.27]
[1617822161048,2.90695,1953.7,1953.6,2.90695]
[1617822161447,2.90695,1953.7,1953.6,4.94435]
[1617822161649,2.90695,1953.7,1953.6,2.90695]
[1617822162452,5.02885,1953.7,1951.9,63.4241]
[1617822162655,5.02885,1953.7,1951.9,64.4414]
[1617822163201,2.1219,1953.7,1953.5,2.90695]
[1617822163406,2.1219,1953.7,1953.6,6.17]
[1617822163573,69.9705,1954.9,1953.6,6.17]
[1617822163769,69.9705,1954.9,1953.5,5.58195]
[1617822164655,69.9705,1954.9,1953.6,6.29]
[1617822165053,69.9705,1954.9,1954.1,2.90695]
[1617822165254,69.9705,1954.9,1954.1,5.07685]
[1617822166256,69.9705,1954.9,1954.1,2.1699]
[1617822166756,30.0,1955.7,1953.5,2.675]
[1617822166957,2.90695,1954.6,1954.2,2.90695]
[1617822167157,2.90695,1954.6,1954.2,5.02045]
[1617822168171,2.90695,1954.6,1954.2,2.1135]
[1617822168358,2.90695,1954.6,1953.5,2.675]
[1617822168559,2.90695,1954.6,1953.0,14.0562]
[1617822169161,2.90695,1953.4,1953.2,2.90695]
[1617822169460,5.19045,1953.4,1953.0,14.0562]
[1617822169861,5.19045,1953.4,1952.4,72.2396]
[1617822170061,5.19045,1953.4,1951.9,2.9677]
[1617822170564,5.19045,1953.4,1952.5,6.34]
[1617822170864,5.19045,1953.4,1952.0,90.9058]
[1617822171063,2.2835,1953.4,1952.7,2.90695]
[1617822172663,63.3556,1954.6,1952.8,6.18]
[1617822173063,2.90695,1952.9,1952.8,6.18]
[1617822173483,1.963,1953.5,1952.8,6.18]
[1617822173875,1.963,1953.5,1952.7,2.90695]
[1617822174363,2.1219,1954.3,1952.7,2.90695]
[1617822174563,30.0,1954.2,1952.8,6.24]
[1617822175163,30.0,1954.2,1952.9,2.90695]
[1617822175765,63.3556,1954.6,1952.9,2.90695]
[1617822175967,30.0,1954.5,1952.9,2.90695]
[1617822176367,63.3556,1954.6,1953.0,6.39]
[1617822177169,63.3556,1954.6,1953.6,2.90695]
[1617822177370,63.3556,1954.6,1953.6,5.20205]
[1617822177572,63.3556,1954.6,1953.7,6.39]
[1617822177771,30.0,1955.1,1953.7,6.39]
[1617822178672,30.0,1955.1,1953.6,2.2951]
[1617822179072,2.90695,1953.7,1953.6,2.2951]
[1617822181273,2.90695,1953.7,1953.5,2.90695]
[1617822182074,2.90695,1953.7,1953.6,6.2]
[1617822182976,2.0,1955.5,1953.6,6.2]
[1617822183176,2.90695,1954.4,1953.6,6.2]
[1617822183376,2.90695,1954.4,1953.6,36.2]
[1617822183577,2.90695,1954.4,1953.6,37.2153]
[1617822183776,2.90695,1954.4,1953.6,36.2]
[1617822183976,2.90695,1954.4,1953.7,2.0]
[1617822184178,2.90695,1954.4,1953.8,31.9367]
[1617822184481,83.5924,1955.7,1953.8,31.9367]
[1617822184482,83.5924,1955.7,1953.8,38.2667]
[1617822184677,83.5924,1955.7,1953.8,40.2667]
[1617822185277,83.5924,1955.7,1955.5,5.38045]
[1617822185477,2.0,1956.4,1955.5,5.38045]
[1617822186078,72.7414,1957.0,1955.5,5.38045]
[1617822186296,72.7414,1957.0,1955.6,6.32]
[1617822187387,2.0,1957.1,1956.3,4.89485]
[1617822187679,2.0,1957.1,1956.3,1.9879]
[1617822188656,70.1243,1957.8,1956.3,1.9879]
[1617822188980,0.51050078,1958.9,1956.4,6.41]
[1617822189280,0.51050078,1958.9,1956.9,2.90695]
[1617822189482,0.51050078,1958.9,1956.9,5.24785]
[1617822189682,30.0,1958.8,1956.9,5.24785]
[1617822189891,2.0,1958.7,1956.9,2.3409]
[1617822190108,71.8668,1957.7,1956.9,2.3409]
[1617822190282,30.0,1957.6,1956.9,2.3409]
[1617822190482,30.0,1957.6,1955.1,2.0]
[1617822190683,2.571,1957.6,1955.1,2.0]
[1617822191086,2.571,1957.6,1955.6,44.0898]
[1617822191284,2.90695,1956.9,1956.6,2.90695]
[1617822191485,2.90695,1956.9,1956.6,5.02425]
[1617822192388,2.90695,1956.9,1956.6,2.1173]
[1617822193295,2.90695,1956.7,1956.6,2.1173]
[1617822194194,2.90695,1956.7,1955.6,14.0898]
[1617822194992,2.90695,1956.7,1955.7,6.19]
[1617822195192,2.90695,1956.7,1955.7,9.072]
[1617822195393,2.0,1957.4,1956.2,2.90695]
[1617822195595,30.0,1957.3,1955.6,14.0898]
[1617822196096,4.571,1957.6,1955.6,14.0898]
[1617822196295,30.0,1957.5,1955.7,6.4]
[1617822197493,30.0,1957.5,1956.1,2.90695]
[1617822197994,2.0,1957.4,1956.1,2.90695]
[1617822198197,61.4023,1956.6,1954.2,2.0]
[1617822198400,30.0,1956.5,1954.2,2.0]
[1617822198726,31.0148,1956.5,1954.0,77.9277]
[1617822198894,31.0148,1956.5,1954.3,6.44]
[1617822199102,2.0,1956.4,1954.3,6.44]
[1617822199393,30.0,1956.3,1954.7,2.90695]
[1617822199593,2.0,1956.2,1954.7,2.90695]
[1617822199894,30.0,1956.1,1954.1,6.28]
[1617822200095,79.5426,1955.4,1953.9,13.2676]
[1617822200294,32.0,1955.3,1953.9,13.2676]
[1617822200995,79.5426,1955.4,1953.9,13.2676]
[1617822201196,79.5426,1955.4,1954.0,6.3]
[1617822201396,79.5426,1955.4,1954.5,2.90695]
[1617822201697,109.5426,1955.4,1953.9,13.2676]
[1617822201896,79.5426,1955.4,1953.9,13.2676]
[1617822202099,81.5426,1955.4,1953.9,13.2676]
[1617822202597,81.5426,1955.4,1954.0,6.39]
[1617822202798,111.5426,1955.4,1953.9,13.2676]
[1617822203398,81.5426,1955.4,1954.1,2.90695]
[1617822203599,79.5426,1955.4,1954.1,2.90695]
[1617822203900,2.0,1955.9,1954.2,6.16]
[1617822204098,2.0,1955.9,1954.2,36.16]
[1617822204599,82.3414,1956.3,1954.2,36.16]
[1617822205000,82.3414,1956.3,1954.2,38.16]
[1617822205401,30.0,1956.2,1955.1,2.90695]
[1617822205802,82.3414,1956.3,1955.1,2.90695]
[1617822206204,84.3414,1956.3,1955.1,2.90695]
[1617822206407,30.0,1956.2,1955.1,2.90695]
[1617822207009,30.0,1956.2,1954.0,2.4839]
[1617822207210,82.7835,1955.2,1954.0,2.4839]
[1617822207514,2.90695,1954.9,1954.8,2.90695]
[1617822207715,2.90695,1954.9,1954.1,6.26]
[1617822208512,2.90695,1954.9,1954.1,7.2836]
[1617822208712,2.90695,1954.9,1954.1,6.26]
[1617822209314,64.1527,1955.7,1955.5,2.90695]
[1617822209514,64.1527,1955.7,1954.2,30.0]
[1617822209714,64.1527,1955.7,1954.3,6.23]
[1617822211213,64.1527,1955.7,1954.1,6.37]
[1617822211415,64.1527,1955.7,1954.8,2.90695]
[1617822211612,64.1527,1955.7,1954.8,5.80745]
[1617822211815,64.1527,1955.7,1954.9,6.39]
[1617822213419,2.90695,1955.0,1954.9,6.39]
[1617822213614,2.90695,1955.0,1954.8,5.80745]
[1617822213615,2.90695,1955.0,1954.8,2.9005]
[1617822213815,2.90695,1955.0,1954.0,4.4839]
[1617822214017,2.90695,1955.0,1954.0,2.4839]
[1617822214216,78.5066,1954.9,1953.9,13.2676]
[1617822214715,78.5066,1954.9,1954.1,6.17]
[1617822214915,78.5066,1954.9,1954.0,6.2]
[1617822215115,78.5066,1954.9,1954.2,6.37]
[1617822215116,81.3327,1954.9,1954.2,6.37]
[1617822215316,81.3327,1954.9,1954.4,2.90695]
[1617822217220,81.3327,1954.9,1952.8,30.0]
[1617822217541,85.1188,1953.9,1953.6,2.90695]
[1617822219322,2.90695,1953.7,1953.6,2.90695]
[1617822219522,2.90695,1953.7,1952.1,30.0]
[1617822219723,2.90695,1953.7,1952.2,2.0]
[1617822219922,2.90695,1953.7,1951.9,12.8726]
[1617822220122,57.7718,1952.8,1951.9,12.8726]
[1617822220423,59.8952,1952.8,1952.3,6.3]
[1617822220625,59.8952,1952.8,1952.0,6.38]
[1617822220825,59.8952,1952.8,1952.4,6.33]
[1617822221124,59.8952,1952.8,1952.0,6.18]
[1617822221327,59.8952,1952.8,1952.0,8.18]
[1617822221525,57.7718,1952.8,1952.7,2.90695]
[1617822221725,2.90695,1953.0,1952.7,2.90695]
[1617822222027,2.90695,1953.0,1952.7,9.34695]
[1617822222225,2.90695,1953.0,1952.7,2.90695]
[1617822223530,2.90695,1953.0,1952.9,2.90695]
[1617822225564,5.42135,1953.0,1952.7,2.90695]
[1617822226890,65.3492,1952.7,1951.9,12.8726]
[1617822227096,32.8264,1952.6,1950.7,5.40040707]
[1617822227232,32.8264,1952.6,1950.7,7.40040707]
[1617822227450,71.23855,1951.2,1951.1,2.90695]
[1617822228536,2.9422,1951.2,1951.1,2.90695]
[1617822228733,2.8264,1952.6,1951.1,2.90695]
[1617822228734,78.1051,1951.8,1951.1,2.90695]
[1617822228934,78.1051,1951.8,1951.1,9.19695]
[1617822229135,78.1051,1951.8,1951.1,2.90695]
[1617822229537,81.01205,1951.8,1950.2,11.97495]
[1617822229838,72.948,1951.7,1950.2,12.99685]
[1617822230072,72.948,1951.7,1950.3,30.0]
[1617822230299,72.948,1951.7,1950.3,36.39]
[1617822230438,2.90695,1951.8,1950.3,38.8649]
[1617822230841,2.90695,1951.8,1950.4,2.0]
[1617822231039,2.90695,1951.8,1950.4,32.0]
[1617822231237,2.90695,1951.8,1950.5,6.17]
[1617822231538,2.90695,1952.0,1951.7,2.90695]
[1617822231837,2.90695,1952.0,1951.8,6.24]
[1617822232737,2.90695,1952.0,1951.7,2.90695]
[1617822233039,72.9107,1952.7,1951.7,2.90695]
[1617822233474,72.9107,1952.7,1951.5,2.2287]
[1617822233475,75.81765,1952.7,1952.6,2.90695]
[1617822233751,75.81765,1952.7,1952.6,5.01105]
[1617822234543,75.81765,1952.7,1952.6,2.1041]
[1617822234941,75.81765,1952.7,1952.1,2.5048]
[1617822235562,2.90695,1952.2,1952.1,2.5048]
[1617822235752,5.88925,1952.2,1952.1,2.5048]
[1617822235946,5.88925,1952.2,1951.3,2.90695]
[1617822237544,2.90695,1951.4,1951.3,2.90695]
[1617822238144,2.6525,1951.6,1951.3,2.90695]
[1617822238744,73.4124,1951.4,1951.3,2.90695]
[1617822239545,76.31935,1951.4,1951.3,9.22695]
[1617822239746,73.4124,1951.4,1951.3,9.22695]
[1617822240547,76.5099,1951.4,1951.3,2.90695]
[1617822241548,79.41685,1951.4,1951.1,2.90695]
[1617822241973,79.41685,1951.4,1950.2,11.97495]
[1617822242154,83.062,1951.1,1950.2,11.97495]
[1617822242652,6.00445,1951.4,1950.2,11.97495]
[1617822243050,61.9519,1950.4,1950.2,11.97495]
[1617822243351,61.9519,1950.4,1948.8,2.8942]
[1617822243550,61.9519,1950.4,1950.3,2.90695]
[1617822243750,78.2963,1950.6,1950.3,2.90695]
[1617822244151,78.2963,1950.6,1950.4,6.42]
[1617822244451,78.2963,1950.6,1950.3,2.90695]
[1617822244851,78.2963,1950.6,1950.4,6.22]
[1617822245155,78.2963,1950.6,1950.3,2.90695]
[1617822245351,80.4098,1950.6,1950.3,2.90695]
[1617822245606,2.90695,1950.4,1948.6,18.74075046]
[1617822245959,65.0156,1949.9,1948.6,5.38625046]
[1617822246258,65.0156,1949.9,1948.7,30.0]
[1617822246454,2.90695,1950.4,1948.7,6.42]
[1617822246772,2.90695,1950.4,1948.6,93.9668]
[1617822246978,2.90695,1950.4,1948.7,6.25]
[1617822247340,2.90695,1950.4,1948.7,38.2589]
[1617822247685,13.1525,1953.5,1950.3,2.90695]
[1617822247877,81.5317,1952.1,1950.3,2.90695]
[1617822248109,81.5317,1952.1,1950.4,6.34]
[1617822248697,1.0158,1953.0,1950.4,6.34]
[1617822248931,1.0334,1953.6,1950.4,6.34]
[1617822249091,60.8328,1953.4,1950.5,79.3382]
[1617822249550,60.8328,1953.4,1950.6,6.15]
[1617822249763,60.8328,1953.4,1951.6,5.16265]
[1617822250156,60.8328,1953.4,1951.7,6.14]
[1617822250356,60.8328,1953.4,1951.6,5.16265]
[1617822250707,60.8328,1953.4,1951.7,6.19]
[1617822251755,2.90695,1952.3,1952.0,5.12275]
[1617822252280,2.90695,1952.3,1952.1,6.23]
[1617822252456,2.90695,1952.3,1952.0,5.12275]
[1617822252659,2.90695,1952.3,1952.1,6.37]
[1617822253759,2.90695,1952.3,1952.2,2.90695]
[1617822254058,2.90695,1952.3,1952.2,9.24695]
[1617822254658,2.90695,1952.3,1952.2,2.90695]
[1617822255262,2.90695,1952.3,1952.2,9.16695]
[1617822258386,80.6732,1954.0,1952.2,39.16695]
[1617822259373,80.6732,1954.0,1952.3,2.0]
[1617822259612,80.6732,1954.0,1952.2,39.16695]
[1617822259613,80.6732,1954.0,1952.7,2.90695]
[1617822260963,110.6732,1954.0,1952.7,2.90695]
[1617822261272,80.6732,1954.0,1952.7,2.90695]
[1617822261665,2.90695,1952.8,1952.7,2.90695]
[1617822262066,2.90695,1952.8,1952.0,3.0942]
[1617822262265,2.90695,1952.8,1951.6,30.0]
[1617822262464,2.90695,1952.8,1951.4,15.1804]
[1617822262666,2.90695,1952.8,1951.4,13.1804]
[1617822263067,2.90695,1952.8,1951.5,6.15]
[1617822263770,75.6875,1952.9,1951.4,13.1804]
[1617822264170,77.6875,1952.9,1951.4,13.1804]
[1617822265071,30.0,1952.8,1951.4,13.1804]
[1617822265271,32.0,1952.8,1951.4,13.1804]
[1617822265772,32.0,1952.8,1951.6,2.90695]
[1617822265974,32.0,1952.8,1951.4,13.1804]
[1617822266174,66.7852,1951.9,1949.1,71.8637]
[1617822266375,99.5226,1951.9,1949.2,2.0]
[1617822266777,2.0,1951.8,1949.5,6.25]
[1617822266977,2.0,1951.8,1949.6,30.0]
[1617822267179,2.0,1951.8,1949.6,32.0]
[1617822267379,2.0,1951.8,1949.6,38.18]
[1617822267784,2.90695,1950.5,1950.4,2.90695]
[1617822267982,4.96455,1950.5,1950.4,2.90695]
[1617822268290,4.96455,1950.5,1950.4,9.07695]
[1617822268512,4.96455,1950.5,1949.2,30.0]
[1617822269286,2.90695,1950.5,1949.3,6.15]
[1617822269496,2.90695,1950.5,1949.4,30.0]
[1617822269781,2.90695,1950.5,1950.4,2.90695]
[1617822269982,2.90695,1950.5,1950.4,5.75125]
[1617822270182,2.90695,1950.5,1950.4,11.90125]
[1617822270812,64.693,1950.6,1950.4,11.90125]
[1617822271314,64.693,1950.6,1950.4,9.05695]
[1617822271784,2.90695,1950.5,1950.4,2.90695]
[1617822273088,2.90695,1950.5,1950.4,9.18695]
[1617822273588,2.2234,1952.1,1950.4,9.18695]
[1617822273787,2.90695,1951.1,1950.4,42.08335]
[1617822275390,78.7205,1951.7,1950.4,42.08335]
[1617822275890,81.62745,1951.7,1951.6,4.91325]
[1617822276090,2.90695,1951.7,1951.6,11.06325]
[1617822276691,2.90695,1951.7,1951.6,8.1563]
[1617822277596,76.194,1952.5,1951.6,38.1563]
[1617822277896,13.3016,1955.1,1952.2,5.58965]
[1617822278095,80.4542,1954.3,1952.2,5.58965]
[1617822278297,80.4542,1954.3,1952.3,6.22]
[1617822278735,80.4542,1954.3,1952.3,36.22]
[1617822278996,82.4542,1954.3,1952.3,36.22]
[1617822279208,80.4542,1954.3,1952.3,36.22]
[1617822279399,110.4542,1954.3,1952.3,36.22]
[1617822279799,110.4542,1954.3,1952.8,2.90695]
[1617822280027,110.4542,1954.3,1952.8,2.0956]
[1617822280930,110.4542,1954.3,1952.2,2.6827]
[1617822281303,3.0363,1954.2,1952.2,2.6827]
[1617822281503,30.0,1954.1,1952.2,2.6827]
[1617822281705,2.0,1954.0,1952.3,6.38]
[1617822281909,30.0,1953.9,1952.4,2.90695]
[1617822282121,2.0,1953.8,1952.4,2.90695]
[1617822282310,30.0,1953.7,1952.5,6.44]
[1617822282538,32.0,1953.7,1951.8,83.1969]
[1617822282771,32.0,1953.7,1951.5,30.0]
[1617822283013,74.7732,1953.4,1951.5,30.0]
[1617822283213,76.744,1953.4,1951.5,30.0]
[1617822283409,76.744,1953.4,1951.8,6.3]
[1617822283809,76.744,1953.4,1952.2,2.90695]
[1617822284138,76.744,1953.4,1952.3,6.3]
[1617822284510,2.0,1953.3,1952.3,6.3]
[1617822284707,2.0,1953.3,1951.0,30.0]
[1617822285507,2.0,1953.3,1951.8,6.44]
[1617822286010,2.0,1953.3,1951.9,2.90695]
[1617822286407,2.0,1953.3,1952.0,6.41]
[1617822287411,32.0,1953.3,1951.9,2.90695]
[1617822287611,32.0,1953.3,1950.7,30.0]
[1617822287935,6.01375,1951.8,1951.2,2.90695]
[1617822288111,69.19875,1951.8,1951.2,2.90695]
[1617822288311,69.19875,1951.8,1950.7,30.0]
[1617822289113,69.19875,1951.8,1950.8,6.34]
[1617822289915,4.96705,1950.9,1950.8,6.34]
[1617822290915,4.96705,1950.9,1950.4,2.90695]
[1617822291516,4.96705,1950.9,1950.5,6.36]
[1617822291715,2.90695,1950.9,1950.5,6.36]
[1617822291916,66.2918,1951.8,1950.5,6.36]
[1617822291917,2.90695,1950.6,1950.5,6.36]
[1617822293220,80.2736,1950.5,1949.7,12.9698]
[1617822293837,80.2736,1950.5,1950.0,2.90695]
[1617822295326,80.2736,1950.5,1950.1,6.19]
[1617822295923,2.90695,1950.2,1950.1,6.19]
[1617822296227,2.90695,1950.2,1950.0,2.90695]
[1617822297357,2.90695,1950.2,1950.1,6.44]
[1617822298528,2.90695,1950.2,1950.0,2.90695]
[1617822301431,5.26075,1950.2,1950.0,2.90695]
[1617822302034,2.3538,1950.2,1950.0,2.90695]
[1617822302236,59.9299,1951.5,1950.1,6.29]
[1617822302444,59.9299,1951.5,1950.1,9.3926]
[1617822302664,59.9299,1951.5,1950.1,39.3926]
[1617822303761,59.9299,1951.5,1950.1,40.424]
[1617822303941,30.0,1953.0,1951.4,2.90695]
[1617822304140,58.5964,1952.1,1951.4,5.63085]
[1617822304445,58.5964,1952.1,1951.5,6.36]
[1617822304640,58.5964,1952.1,1951.4,2.7239]
[1617822306042,2.90695,1951.5,1951.4,5.63085]
[1617822306449,2.90695,1951.5,1951.4,11.86085]
[1617822307942,2.90695,1951.7,1951.4,11.86085]
[1617822309450,58.5964,1952.1,1951.4,11.86085]
[1617822309946,2.90695,1951.6,1951.4,11.86085]
[1617822312149,2.90695,1951.6,1951.4,41.86085]
[1617822312550,0.05777602,1953.9,1951.4,41.86085]
[1617822312852,0.05777602,1953.9,1951.5,2.0]
[1617822312853,85.0059,1953.2,1951.5,2.0]
[1617822313050,85.0059,1953.2,1951.6,36.38]
[1617822313953,2.90695,1952.1,1951.9,2.90695]
[1617822314150,2.90695,1952.1,1951.9,4.93485]
[1617822314451,2.90695,1952.1,1952.0,6.15]
[1617822316956,85.0059,1953.2,1952.0,36.15]
[1617822317988,85.0059,1953.2,1952.8,2.90695]
[1617822318157,85.0059,1953.2,1952.8,5.75935]
[1617822318356,2.0,1954.0,1952.8,5.75935]
[1617822318560,85.2264,1954.0,1952.8,5.75935]
[1617822318761,85.2264,1954.0,1952.9,6.34]
[1617822319774,83.2264,1954.0,1952.9,6.34]
[1617822320109,0.02895878,1954.3,1953.5,2.90695]
[1617822320303,30.46334052,1954.7,1953.5,5.92385]
[1617822320304,30.02901409,1954.7,1953.5,5.92385]
[1617822320478,73.893,1954.5,1953.5,5.92385]
[1617822322062,2.90695,1953.6,1953.5,5.92385]
[1617822322262,2.90695,1953.6,1953.5,3.0169]
[1617822323981,2.90695,1953.6,1953.5,9.3769]
[1617822325665,2.90695,1953.6,1953.5,3.0169]
[1617822325866,2.90695,1953.6,1953.3,2.90695]
[1617822326068,2.90695,1953.4,1953.3,2.90695]
[1617822326369,73.893,1954.5,1953.3,2.90695]
[1617822326572,2.571,1954.8,1953.3,39.12695]
[1617822326770,2.571,1954.8,1953.7,75.1945]
[1617822326969,2.571,1954.8,1953.7,77.6597]
[1617822327172,2.571,1954.8,1953.8,6.28]
[1617822328071,2.90695,1953.9,1953.7,77.6597]
[1617822328477,2.90695,1953.9,1953.6,2.90695]
[1617822328815,2.90695,1953.9,1953.1,72.6829]
[1617822328978,5.39445,1953.9,1953.1,72.6829]
[1617822329598,5.39445,1953.9,1953.2,6.21]
[1617822329792,5.39445,1953.9,1953.1,72.6829]
[1617822330291,2.90695,1953.2,1951.7,2.0]
[1617822330541,64.6657,1953.1,1951.3,70.473]
[1617822330818,69.232,1952.2,1950.8,12.9948]
[1617822331172,72.1666,1952.2,1950.8,12.9948]
[1617822331598,72.1666,1952.2,1950.9,6.44]
[1617822332177,72.1666,1952.2,1951.3,2.90695]
[1617822332582,72.1666,1952.2,1951.4,6.32]
[1617822332776,72.1666,1952.2,1951.3,2.90695]
[1617822333374,72.1666,1952.2,1950.8,12.9948]
[1617822333691,30.0,1952.1,1950.8,12.9948]
[1617822334176,2.90695,1950.9,1950.8,15.90175]
[1617822334381,5.46315,1950.9,1949.9,2.0]
[1617822334579,76.8757,1950.6,1949.8,2.0]
[1617822335083,76.8757,1950.6,1949.9,6.19]